[Event "10th Beirut Open-ch 2019"]
[Site "Beirut"]
[Date "2019.04.29"]
[Round "4.19"]
[White "Bedrosian, Danielle"]
[Black "Habash, Mohamad"]
[Result "1/2-1/2"]
[ECO "A01"]
[WhiteElo "1676"]
[BlackElo "1806"]
[PlyCount "107"]
[EventDate "2019.04.25"]
[EventType "swiss"]
[EventRounds "9"]
[EventCountry "LBN"]
[TimeControl "5400+30"]

1. b3 e5 2. Bb2 Nc6 3. g3 d5 4. Bg2 Nf6 5. d3 h5 6. Nf3 Bd6 7. e3 Bg4 8. h3 Bf5 9. Nbd2 Qd7 10. a3 O-O-O 11. b4 Kb8 12. Nb3 e4 13. Nfd4 Nxd4 14. Bxd4 h4 15. Bxf6 gxf6 16. g4 Bg6 17. d4 f5 18. gxf5 Bxf5 19. Qd2 Rdg8 20. Bf1 Rh6 21. O-O-O Rhg6 22. Nc5 Qc8 23. Qe2 Be7 24. Qb5 Rg1 25. Rxg1 Rxg1 26. Na6+ Ka8 27. Qxd5 f6 28. Nxc7+ Kb8 29. Nb5 Be6 30. Qh5 Bb3 31. Qe2 a6 32. Kb2 Bc4 33. Qxc4 Qxc4 34. Bxc4 Rxd1 35. Nc3 Rg1 36. Nxe4 Kc7 37. Be6 b6 38. Kb3 Rb1+ 39. Ka2 Rf1 40. Kb3 Rg1 41. Kc3 Rg2 42. Kb3 Rh2 43. Kc3 Kd8 44. Kb3 Rh1 45. c4 Kc7 46. c5 a5 47. cxb6+ Kxb6 48. bxa5+ Kxa5 49. Kb2 Kb6 50. Bg4 Kc7 51. Be6 Rf1 52. Bg4 Re1 53. a4 Kb6 54. Bd7 1/2-1/2

[Event "10th Beirut Open-ch 2019"]
[Site "Beirut"]
[Date "2019.04.29"]
[Round "4.20"]
[White "Eid, Wissam"]
[Black "Slim, Nadim"]
[Result "0-1"]
[ECO "B34"]
[WhiteElo "1568"]
[BlackElo "1781"]
[PlyCount "58"]
[EventDate "2019.04.25"]
[EventType "swiss"]
[EventRounds "9"]
[EventCountry "LBN"]
[TimeControl "5400+30"]

1. e4 c5 2. Nf3 g6 3. d4 cxd4 4. Nxd4 Bg7 5. Be3 Nc6 6. Nc3 a6 7. a3 d6 8. Be2 Nf6 9. f3 O-O 10. Qd2 Nxd4 11. Bxd4 b5 12. Be3 Bb7 13. Bh6 Qc7 14. O-O Rfd8 15. Bxg7 Kxg7 16. Kh1 d5 17. exd5 Nxd5 18. Nxd5 Rxd5 19. Qc3+ Qxc3 20. bxc3 Rc8 21. c4 bxc4 22. Rfb1 Rd2 23. Rxb7 Rxe2 24. Ra7 Rxc2 25. Rxa6 Rb2 26. Ra7 e6 27. Rd7 c3 28. Rdd1 c2 29. Rdc1 Rcb8 0-1

[Event "10th Beirut Open-ch 2019"]
[Site "Beirut"]
[Date "2019.04.29"]
[Round "4.21"]
[White "Salman, Samer"]
[Black "Terzian, Kevork"]
[Result "1-0"]
[ECO "B05"]
[WhiteElo "1505"]
[BlackElo "1731"]
[PlyCount "63"]
[EventDate "2019.04.25"]
[EventType "swiss"]
[EventRounds "9"]
[EventCountry "LBN"]
[TimeControl "5400+30"]

1. e4 Nf6 2. e5 Nd5 3. d4 d6 4. Nf3 Bg4 5. Be2 Nc6 6. exd6 exd6 7. O-O Be7 8. c4 Nf6 9. Nc3 O-O 10. Re1 d5 11. cxd5 Nxd5 12. Qb3 Nxc3 13. bxc3 Rb8 14. Bf4 Bf6 15. Nd2 Bxe2 16. Rxe2 Bg5 17. Bxg5 Qxg5 18. Ne4 Qh5 19. Rae1 b6 20. Qc4 Qg6 21. Re3 Ne7 22. Nf6+ Qxf6 23. Rxe7 c5 24. dxc5 Rfc8 25. cxb6 Rd8 26. Qa4 Kf8 27. Qa3 Qd6 28. Qxd6 Rxd6 29. bxa7 Ra8 30. Re8+ Rxe8 31. Rxe8+ Kxe8 32. a8=Q+ 1-0

[Event "10th Beirut Open-ch 2019"]
[Site "Beirut"]
[Date "2019.04.29"]
[Round "4.22"]
[White "Hasan Ali Prince"]
[Black "Kabalan, Farah"]
[Result "1/2-1/2"]
[ECO "D00"]
[WhiteElo "1854"]
[BlackElo "1602"]
[PlyCount "91"]
[EventDate "2019.04.25"]
[EventType "swiss"]
[EventRounds "9"]
[EventCountry "LBN"]
[TimeControl "5400+30"]

1. d4 Nf6 2. e3 d5 3. Bd3 c5 4. c3 Nc6 5. f4 Bg4 6. Nf3 e6 7. O-O Bd6 8. Qe1 c4 9. Bc2 Bf5 10. Qe2 O-O 11. Ne5 Bxc2 12. Qxc2 Bxe5 13. fxe5 Ne4 14. Nd2 Nxd2 15. Bxd2 f6 16. exf6 Rxf6 17. e4 Rxf1+ 18. Rxf1 Qe7 19. Re1 Qf6 20. exd5 exd5 21. Rf1 Qg6 22. Qxg6 hxg6 23. Bg5 Re8 24. Rd1 Re2 25. Bd2 Ne7 26. Kf1 Re4 27. Kf2 Nf5 28. g3 Re6 29. Bf4 Kf7 30. g4 Nd6 31. Bxd6 Rxd6 32. h4 Re6 33. Kf3 Kf6 34. b3 b5 35. bxc4 bxc4 36. Rb1 Rb6 37. Rxb6+ axb6 38. Ke2 Ke6 39. Ke3 Ke7 40. Kd2 Kd6 41. Kc2 Kc6 42. Kb2 Kb5 43. Ka3 g5 44. hxg5 g6 45. Kb2 Ka4 46. a3 1/2-1/2

[Event "10th Beirut Open-ch 2019"]
[Site "Beirut"]
[Date "2019.04.29"]
[Round "4.23"]
[White "Salameh, Sleiman"]
[Black "Jabr, Bernard"]
[Result "1-0"]
[ECO "A25"]
[WhiteElo "1621"]
[BlackElo "1679"]
[PlyCount "94"]
[EventDate "2019.04.25"]
[EventType "swiss"]
[EventRounds "9"]
[EventCountry "LBN"]
[TimeControl "5400+30"]

1. c4 e5 2. Nc3 Nc6 3. g3 f5 4. d3 Nf6 5. Bg2 Bc5 6. Bg5 Bxf2+ 7. Kd2 h6 8. Bxf6 Qxf6 9. Nd5 Qd8 10. e3 O-O 11. Nh3 f4 12. gxf4 Bh4 13. Qh5 d6 14. Rhg1 Be6 15. Qg6 Bf7 16. Qg4 h5 17. Qf5 Ne7 18. Nxe7+ Qxe7 19. Be4 g6 20. Rxg6+ Bxg6 21. Qxg6+ Qg7 22. Qe6+ Kh8 23. Rg1 Qf6 24. f5 c6 25. Rg6 Qxe6 26. Rxe6 Rf6 27. Re7 Rb8 28. Rd7 Kg8 29. b4 a6 30. a4 b5 31. Bxc6 bxa4 32. b5 axb5 33. cxb5 Rxf5 34. Ra7 e4 35. dxe4 Rfxb5 36. Bxb5 Rxb5 37. Rxa4 Rb2+ 38. Kd3 Rxh2 39. Nf4 Bf6 40. Ra5 Be5 41. Ng6 Bg3 42. Rg5 h4 43. Nxh4+ Kf7 44. Nf3 Rg2 45. Nd4 Rg1 46. Ne2 Rd1+ 47. Kc2 Bh4 1-0

[Event "10th Beirut Open-ch 2019"]
[Site "Beirut"]
[Date "2019.04.29"]
[Round "4.24"]
[White "Tarraf, Tarraf"]
[Black "Muhssen, Fared Saleh"]
[Result "1-0"]
[ECO "E09"]
[WhiteElo "1647"]
[BlackElo "1898"]
[PlyCount "87"]
[EventDate "2019.04.25"]
[EventType "swiss"]
[EventRounds "9"]
[EventCountry "LBN"]
[TimeControl "5400+30"]

1. c4 e6 2. g3 d5 3. Bg2 Nf6 4. Nf3 Be7 5. O-O O-O 6. d4 c6 7. Qc2 Nbd7 8. Nbd2 b6 9. e4 Nxe4 10. Nxe4 dxe4 11. Qxe4 Bb7 12. Bf4 Nf6 13. Qe2 c5 14. Rfd1 Qc8 15. d5 Re8 16. Bh3 Bd8 17. Ng5 h6 18. Ne4 Nxe4 19. Qxe4 f5 20. Bxf5 Bf6 21. Bxe6+ Qxe6 22. Qxe6+ Rxe6 23. dxe6 Re8 24. Rd7 Be4 25. Re1 Rxe6 26. f3 Bf5 27. Rxe6 Bxe6 28. Rxa7 Bxb2 29. Rb7 Bxc4 30. Rxb6 Bd4+ 31. Kg2 Bxa2 32. Rd6 Bb1 33. Kf1 Ba2 34. Ke2 Bf6 35. Bxh6 Kf7 36. Bc1 c4 37. Ba3 Bb1 38. Rb6 Bd3+ 39. Kd2 Bf1 40. Bb2 Bg2 41. Bxf6 gxf6 42. Ke2 Bh3 43. g4 f5 44. g5 1-0

[Event "10th Beirut Open-ch 2019"]
[Site "Beirut"]
[Date "2019.04.30"]
[Round "5.4"]
[White "Sursock, Sameer"]
[Black "Cherniaev, Alexander"]
[Result "0-1"]
[ECO "A04"]
[WhiteElo "2048"]
[BlackElo "2401"]
[Annotator "ChessBase"]
[PlyCount "102"]
[EventDate "2019.04.25"]
[EventType "swiss"]
[EventRounds "9"]
[EventCountry "LBN"]
[SourceTitle "playchess.com"]
[Source "ChessBase"]
[SourceQuality "1"]
[TimeControl "5400+30"]

1. Nf3 {[%emt 0:00:02]} g6 {[%emt 0:00:18]} 2. g3 {[%emt 0:00:23]} Bg7 {[%emt 0:00:07]} 3. Bg2 {[%emt 0:01:33]} e5 {[%emt 0:01:10]} 4. d3 {[%emt 0:00:32]} d6 {[%emt 0:00:38]} 5. c4 {[%emt 0:01:56]} Ne7 {[%emt 0:00:19]} 6. Nc3 {[%emt 0:00:30]} O-O {[%emt 0:00:14]} 7. O-O {[%emt 0:00:43]} Nd7 {[%emt 0:02:57]} 8. Rb1 {[%emt 0:07:30]} c6 {[%emt 0:03:55]} 9. d4 {[%emt 0:09:23]} Nf5 {[%emt 0:02:51]} 10. d5 {[%emt 0:06:25]} c5 {[%emt 0:00:11]} 11. Nd2 {[%emt 0:09:48]} Nf6 {[%emt 0:07:06]} 12. a3 {[%emt 0:06:01]} a5 {[%emt 0:16:18]} 13. Nde4 {[%emt 0:05:32]} Nxe4 {[%emt 0:00:56]} 14. Nxe4 {[%emt 0:01:37]} a4 {[%emt 0:00:20]} 15. e3 {[%emt 0:08:40]} Nh6 {[%emt 0:04:29]} 16. b4 {[%emt 0:03:58]} axb3 {[%emt 0:00:12]} 17. Qxb3 {[%emt 0:00:49]} f5 {[%emt 0:05:48]} 18. Nc3 {[%emt 0:00:16]} e4 {[%emt 0:02:19]} 19. f3 {[%emt 0:07:16]} exf3 {[%emt 0:00:25]} 20. Bxf3 {[%emt 0:01:47]} Nf7 {[%emt 0:00:18]} 21. Nb5 {[%emt 0:01:26]} Re8 {[%emt 0:05:10]} 22. Bg2 {[%emt 0:05:27]} Bd7 {[%emt 0:02:16]} 23. Bd2 {[%emt 0:01:50]} Be5 {[%emt 0:04:43]} 24. a4 {[%emt 0:01:20]} h5 {[%emt 0:01:46]} 25. e4 {[%emt 0:01:55]} Bxb5 {[%emt 0:06:11]} 26. axb5 {[%emt 0:04:08]} Bd4+ {[%emt 0:01:40]} 27. Kh1 {[%emt 0:00:58]} fxe4 {[%emt 0:00:56]} 28. Bxe4 {[%emt 0:00:17]} Rxe4 {[%emt 0:10:52]} 29. Rxf7 {[%emt 0:00:14]} Kxf7 {[%emt 0:00:08]} 30. Qf3+ {[%emt 0:00:44]} Qf6 {[%emt 0:01:01]} 31. Qxe4 {[%emt 0:00:10]} Qf5 {[%emt 0:01:04]} 32. Qxf5+ {[%emt 0:02:02]} gxf5 {[%emt 0:00:17]} 33. Re1 {[%emt 0:05:50]} Be5 {[%emt 0:02:53]} 34. Bf4 {[%emt 0:00:26]} Kf6 {[%emt 0:00:02]} 35. Kg2 {[%emt 0:00:58]} Ra4 {[%emt 0:02:32]} 36. Rc1 {[%emt 0:00:33]} Ra2+ {[%emt 0:00:07]} 37. Kh3 {[%emt 0:01:32]} Re2 {[%emt 0:02:10]} 38. Bxe5+ {[%emt 0:03:19]} dxe5 {[%emt 0:06:06]} 39. Ra1 {[%emt 0:00:22]} Re4 {[%emt 0:00:57]} 40. Ra7 {[%emt 0:00:12]} Rxc4 {[%emt 0:00:02]} 41. Rxb7 {[%emt 0:00:09]} Rb4 {[%emt 0:02:50]} 42. b6 {[%emt 0:00:16]} c4 {[%emt 0:01:28]} 43. Rc7 {[%emt 0:00:47]} Rxb6 {[%emt 0:00:44]} 44. Rxc4 {[%emt 0:00:09]} Rd6 {[%emt 0:01:47]} 45. Kh4 {[%emt 0:00:15]} e4 {[%emt 0:00:31]} 46. Kxh5 {[%emt 0:00:48]} Rxd5 {[%emt 0:01:44]} 47. Rc6+ {[%emt 0:00:12]} Ke5 {[%emt 0:00:01]} 48. Kg5 {[%emt 0:00:13]} e3 {[%emt 0:00:16]} 49. Rc8 {[%emt 0:01:29]} Ke4 {[%emt 0:00:01]} 50. Rc1 {[%emt 0:00:45]} e2 {[%emt 0:00:28]} 51. h4 {[%emt 0:00:53]} f4+ {[%emt 0:01:10]} 0-1

[Event "10th Beirut Open-ch 2019"]
[Site "Beirut"]
[Date "2019.04.30"]
[Round "5.5"]
[White "Eid, Fadi"]
[Black "Moudallal, Tarek"]
[Result "1-0"]
[ECO "B27"]
[WhiteElo "2331"]
[BlackElo "2043"]
[Annotator "NA"]
[PlyCount "53"]
[EventDate "2019.04.25"]
[EventType "swiss"]
[EventRounds "9"]
[EventCountry "LBN"]
[SourceTitle "playchess.com"]
[Source "ChessBase"]
[SourceQuality "1"]
[TimeControl "5400+30"]

1. e4 c5 {[%emt 0:00:00]} 2. Nf3 {[%emt 0:00:00]} g6 {[%emt 0:00:00]} 3. d4 {[%emt 0:00:00]} cxd4 {[%emt 0:00:00]} 4. Nxd4 {[%emt 0:00:00]} Bg7 {[%emt 0:00:06]} 5. Nc3 {[%emt 0:00:00]} Nc6 {[%emt 0:00:07]} 6. Be3 {[%emt 0:00:00]} Nf6 {[%emt 0:00:08]} 7. Nxc6 {[%emt 0:00:00]} bxc6 {[%emt 0:00:10]} 8. e5 {[%emt 0:00:00]} Ng8 {[%emt 0:00:12]} 9. Bd4 {[%emt 0:00:01]} Qc7 {[%emt 0:00:36]} 10. e6 {[%emt 0:00:29]} Nf6 {[%emt 0:01:10]} 11. exd7+ {[%emt 0:00:04]} Bxd7 {[%emt 0:01:28]} 12. Bc4 {[%emt 0:00:28]} O-O {[%emt 0:00:51]} 13. Qe2 {[%emt 0:00:30]} Nd5 {[%emt 0:06:27]} 14. Bxg7 {[%emt 0:00:29]} Kxg7 {[%emt 0:00:09]} 15. Bxd5 {[%emt 0:03:43]} cxd5 {[%emt 0:00:10]} 16. Nxd5 {[%emt 0:00:08]} Qc5 {[%emt 0:09:54]} 17. c4 {[%emt 0:11:51]} Bc6 {[%emt 0:00:30]} 18. Ne3 {[%emt 0:00:30]} f5 {[%emt 0:00:30]} 19. O-O-O {[%emt 0:00:30]} Rad8 {[%emt 0:32:58]} 20. f3 {[%emt 0:18:26]} Qe5 {[%emt 0:04:47]} 21. Rxd8 {[%emt 0:00:31]} Rxd8 {[%emt 0:00:27]} 22. Nxf5+ {[%emt 0:00:24]} Qxf5 {[%emt 0:01:01]} 23. Qxe7+ {[%emt 0:00:13]} Qf7 {[%emt 0:00:14]} 24. Qxd8 {[%emt 0:00:03]} Qxc4+ {[%emt 0:00:20]} 25. Kb1 {[%emt 0:00:11]} Bd5 26. Qa5 {[%emt 0:00:57]} a6 {[%emt 0:08:07]} 27. Qc3+ {[%emt 0:00:10]} 1-0

[Event "10th Beirut Open-ch 2019"]
[Site "Beirut"]
[Date "2019.04.30"]
[Round "5.6"]
[White "Dimitrijevic, Aleksandra"]
[Black "Hassweh, Mwaffaq"]
[Result "1-0"]
[ECO "A06"]
[WhiteElo "2164"]
[BlackElo "1866"]
[Annotator "NA"]
[PlyCount "73"]
[EventDate "2019.04.25"]
[EventType "swiss"]
[EventRounds "9"]
[EventCountry "LBN"]
[SourceTitle "playchess.com"]
[Source "ChessBase"]
[SourceQuality "1"]
[TimeControl "5400+30"]

1. Nf3 {[%emt 0:16:39]} d5 {[%emt 0:00:00]} 2. b3 {[%emt 0:01:30]} c5 {[%emt 0:00:57]} 3. e3 {[%emt 0:00:56]} Nc6 {[%emt 0:00:05]} 4. Bb2 {[%emt 0:00:03]} Bg4 {[%emt 0:00:38]} 5. Be2 {[%emt 0:00:09]} Nf6 {[%emt 0:00:16]} 6. d3 {[%emt 0:00:05]} e6 {[%emt 0:03:42]} 7. Nbd2 {[%emt 0:00:35]} Bd6 {[%emt 0:01:26]} 8. c4 {[%emt 0:00:36]} O-O {[%emt 0:01:50]} 9. O-O {[%emt 0:00:23]} Re8 {[%emt 0:01:50]} 10. a3 {[%emt 0:00:04]} Nd7 {[%emt 0:02:20]} 11. Rc1 {[%emt 0:03:59]} Rc8 {[%emt 0:03:06]} 12. Re1 {[%emt 0:02:13]} Nce5 {[%emt 0:03:04]} 13. Qc2 {[%emt 0:03:38]} Bxf3 {[%emt 0:05:41]} 14. Nxf3 {[%emt 0:00:23]} Nxf3+ {[%emt 0:00:59]} 15. Bxf3 {[%emt 0:00:04]} Ne5 {[%emt 0:04:23]} 16. Be2 {[%emt 0:00:54]} Qh4 {[%emt 0:00:32]} 17. h3 {[%emt 0:00:24]} d4 {[%emt 0:02:02]} 18. Bf1 {[%emt 0:03:47]} dxe3 {[%emt 0:01:21]} 19. Rxe3 {[%emt 0:00:27]} Qf4 {[%emt 0:03:20]} 20. g3 {[%emt 0:03:26]} Nf3+ {[%emt 0:05:40]} 21. Kg2 {[%emt 0:00:50]} Nh4+ {[%emt 0:00:01]} 22. Kh1 {[%emt 0:00:10]} Qg5 {[%emt 0:01:11]} 23. gxh4 {[%emt 0:00:45]} Qxh4 {[%emt 0:01:12]} 24. Be5 {[%emt 0:00:46]} Be7 {[%emt 0:02:50]} 25. Rg3 {[%emt 0:00:18]} f6 {[%emt 0:00:59]} 26. Bc3 {[%emt 0:01:28]} Bd6 {[%emt 0:00:27]} 27. Rg4 {[%emt 0:00:05]} Qh6 {[%emt 0:02:19]} 28. Qd2 {[%emt 0:00:09]} g5 {[%emt 0:03:15]} 29. f4 {[%emt 0:00:20]} Qh5 {[%emt 0:02:42]} 30. Bxf6 {[%emt 0:00:10]} h6 {[%emt 0:00:18]} 31. fxg5 {[%emt 0:00:18]} Kf7 {[%emt 0:00:31]} 32. Qf2 {[%emt 0:00:18]} Rg8 {[%emt 0:02:14]} 33. Re1 {[%emt 0:00:37]} Rg6 {[%emt 0:00:52]} 34. Be5+ {[%emt 0:00:26]} Ke7 {[%emt 0:00:22]} 35. Bxd6+ {[%emt 0:00:07]} Kxd6 {[%emt 0:00:30]} 36. Qf7 {[%emt 0:00:07]} e5 {[%emt 0:01:54]} 37. Rxe5 {[%emt 0:00:10] Kd5} 1-0

[Event "10th Beirut Open-ch 2019"]
[Site "Beirut"]
[Date "2019.04.30"]
[Round "5.7"]
[White "Raetsky, Alexander"]
[Black "Najjar, Ahmad"]
[Result "1/2-1/2"]
[ECO "B06"]
[WhiteElo "2394"]
[BlackElo "2233"]
[Annotator "NA"]
[PlyCount "119"]
[EventDate "2019.04.25"]
[EventType "swiss"]
[EventRounds "9"]
[EventCountry "LBN"]
[SourceTitle "playchess.com"]
[Source "ChessBase"]
[SourceQuality "1"]
[TimeControl "5400+30"]

1. d4 g6 2. e4 Bg7 3. Nc3 c5 4. dxc5 Bxc3+ 5. bxc3 Qa5 6. Qd4 {B06: Modern Defence} (6. Bd3 Nf6 7. Ne2 Qxc5 8. O-O b6 9. Rb1 Ba6 10. Be3 Qc7 11. f4 d6 {0-1 (43) Saric,I (2669)-Piorun,K (2651) Katowice 2017}) 6... Nf6 7. Qb4 Qxb4 8. cxb4 Nxe4 9. f3 Nf6 10. Bb2 b6 $146 ({Predecessor:} 10... O-O 11. Bc4 Nc6 {1-0 (24) Grover,S (2496)-Petrisor,A (2408) Chennai 2011}) 11. cxb6 axb6 12. a3 O-O 13. O-O-O Nh5 14. Bb5 d6 15. Ne2 Bd7 16. Nd4 Rc8 17. Rhe1 Kf8 18. Kb1 Nf4 19. g3 Bxb5 20. Nxb5 Ne6 21. f4 Rc4 22. f5 gxf5 23. Rd5 f4 24. Rh5 fxg3 25. Rxh7 Rg4 26. hxg3 Nc6 27. Rf1 Ncd8 28. Rf3 Rc8 29. Re3 Rcc4 30. Nc3 Rc7 31. Nd5 Rb7 32. Rf3 Ke8 33. Bf6 Rg8 34. Bh4 Ng5 35. Bxg5 Rxg5 36. c4 b5 37. Re3 Ne6 38. Nf6+ Kf8 39. Ne4 Re5 40. Nc5 Rxe3 41. Nxb7 Rxa3 42. cxb5 Rxg3 43. Rh8+ Kg7 44. Re8 Rb3+ 45. Ka2 Rxb4 46. Rxe7 Ra4+ (46... Kf6 $5 {[%cal Rf6e7]} 47. Rd7 Nd4 48. Nxd6 Ke6 $15) 47. Kb2 Ra7 48. Rd7 Nd8 49. Rxd8 Rxb7 50. Rxd6 Rxb5+ 51. Kc3 Re5 52. Kd3 f6 53. Ra6 Kg6 54. Ra1 f5 55. Kd2 $2 (55. Rf1 $11) 55... f4 $2 (55... Kg5 $19 56. Rg1+ Kh4 57. Rh1+ Kg3) 56. Re1 Ra5 57. Ke2 Kg5 58. Kf2 $11 Ra2+ 59. Re2 Ra3 60. Re8 1/2-1/2

[Event "10th Beirut Open-ch 2019"]
[Site "Beirut"]
[Date "2019.04.30"]
[Round "5.8"]
[White "El Jawich, Amro"]
[Black "Ivanov, Mikhail M"]
[Result "1-0"]
[ECO "B15"]
[WhiteElo "2238"]
[BlackElo "2372"]
[PlyCount "73"]
[EventDate "2019.04.25"]
[EventType "swiss"]
[EventRounds "9"]
[EventCountry "LBN"]
[TimeControl "5400+30"]

1. e4 c6 2. d4 d5 3. Nc3 dxe4 4. Nxe4 Nf6 5. Nxf6+ exf6 6. c3 Bd6 7. Bd3 O-O 8. Ne2 Re8 9. Qc2 h5 10. Be3 Qc7 11. O-O-O b5 12. h3 h4 13. d5 a6 14. Bh7+ Kh8 15. Rd4 g5 16. Bf5 c5 17. Re4 Rxe4 18. Qxe4 Bxf5 19. Qxf5 Qe7 20. g3 Nd7 21. gxh4 Rg8 22. hxg5 fxg5 23. h4 Kg7 24. hxg5 Kf8 25. g6 Rxg6 26. Rh8+ Kg7 27. Qh3 Nf6 28. Bh6+ Kxh8 29. Bf8+ Kg8 30. Bxe7 Bxe7 31. Qc8+ Kg7 32. Ng3 Nxd5 33. Nf5+ Kf6 34. Nxe7 Kxe7 35. Qb7+ Ke6 36. Qc6+ Ke5 37. Qxc5 1-0

[Event "10th Beirut Open-ch 2019"]
[Site "Beirut"]
[Date "2019.04.30"]
[Round "5.9"]
[White "Eiti, Bashir"]
[Black "Asmar, Elie"]
[Result "1-0"]
[ECO "D02"]
[WhiteElo "2352"]
[BlackElo "2009"]
[PlyCount "63"]
[EventDate "2019.04.25"]
[EventType "swiss"]
[EventRounds "9"]
[EventCountry "LBN"]
[TimeControl "5400+30"]

1. d4 d5 2. Nf3 Nf6 3. Bf4 c5 4. e3 Nc6 5. c3 Qb6 6. Qb3 c4 7. Qxb6 axb6 8. Na3 Bf5 9. Nb5 Ra5 10. Nc7+ Kd7 11. Ne5+ Nxe5 12. dxe5 Kxc7 13. exf6+ Kc6 14. fxe7 Bxe7 15. a3 Bf6 16. Be2 g5 17. Bg3 b5 18. O-O h5 19. f3 h4 20. Bf2 Raa8 21. Rad1 Rhe8 22. Rd2 Rad8 23. Rfd1 Be7 24. Kf1 b6 25. Kg1 Bc5 26. e4 Be6 27. a4 Bxf2+ 28. Kxf2 Rd7 29. axb5+ Kc5 30. Rd4 Red8 31. exd5 Bxd5 32. Bxc4 1-0

[Event "10th Beirut Open-ch 2019"]
[Site "Beirut"]
[Date "2019.04.30"]
[Round "5.11"]
[White "Novikova, Margarita"]
[Black "Ghnatios, Ralph"]
[Result "1-0"]
[ECO "B26"]
[WhiteElo "2032"]
[BlackElo "1838"]
[PlyCount "71"]
[EventDate "2019.04.25"]
[EventType "swiss"]
[EventRounds "9"]
[EventCountry "LBN"]
[TimeControl "5400+30"]

1. e4 c5 2. Nc3 g6 3. d3 Bg7 4. Be3 d6 5. g3 Nc6 6. Bg2 Nf6 7. h3 O-O 8. Qd2 Re8 9. Nge2 Rb8 10. a4 a6 11. f4 Bd7 12. g4 b5 13. axb5 axb5 14. Ng3 Nd4 15. e5 dxe5 16. fxe5 Nxg4 17. hxg4 Bxe5 18. Bxd4 cxd4 19. Nce2 Bxg4 20. Qh6 Qc7 21. Qxh7+ Kf8 22. O-O e6 23. Qxg6 Bxe2 24. Nxe2 Re7 25. Qh6+ Ke8 26. Qh5 Kd8 27. Qh4 Kd7 28. Nxd4 Rh8 29. Qe4 f5 30. Qc6+ Qxc6 31. Nxc6 Bh2+ 32. Kf2 Ree8 33. Ra7+ Kd6 34. Ra6 Kc7 35. Nd4 Bd6 36. Nxb5+ 1-0

[Event "10th Beirut Open-ch 2019"]
[Site "Beirut"]
[Date "2019.04.30"]
[Round "5.12"]
[White "Al Salman, Mohamad"]
[Black "Haidar, Wassim"]
[Result "1-0"]
[ECO "E12"]
[WhiteElo "1958"]
[BlackElo "1707"]
[PlyCount "115"]
[EventDate "2019.04.25"]
[EventType "swiss"]
[EventRounds "9"]
[EventCountry "LBN"]
[TimeControl "5400+30"]

1. d4 Nf6 2. Nf3 b6 3. c4 e6 4. Bg5 Be7 5. Nc3 Bb7 6. Qc2 d5 7. cxd5 exd5 8. e3 Nbd7 9. Bb5 O-O 10. O-O a6 11. Ba4 Rc8 12. Rfd1 Nh5 13. Qf5 Nhf6 14. Ne5 c6 15. Nxd5 cxd5 16. Nxd7 Nxd7 17. Bxe7 Qxe7 18. Qxd7 Qxd7 19. Bxd7 Rc2 20. Rdc1 Rxb2 21. Rc7 Rb8 22. Rac1 g6 23. a4 b5 24. axb5 axb5 25. R7c5 Ba6 26. Bc6 b4 27. Bxd5 Bd3 28. Bc4 Bxc4 29. R5xc4 Kg7 30. R4c2 Rb3 31. g4 Kh6 32. Kg2 Rd3 33. Rb2 b3 34. Kf3 Re8 35. Rcb1 Rb8 36. Ke2 Rc3 37. Kd2 Rbc8 38. Rxb3 Rc2+ 39. Ke1 Kg5 40. h3 Kh4 41. e4 R2c3 42. Kd2 Rc2+ 43. Ke3 R8c3+ 44. Rxc3 Rxc3+ 45. Kf4 g5+ 46. Ke5 Rxh3 47. d5 Rd3 48. Rh1+ Kxg4 49. Rxh7 Rf3 50. Rh2 Rd3 51. Rg2+ Kh4 52. Kf6 Rf3+ 53. Ke7 g4 54. d6 Kh3 55. Rg3+ Rxg3 56. fxg3 Kxg3 57. d7 Kh2 58. d8=Q 1-0

[Event "10th Beirut Open-ch 2019"]
[Site "Beirut"]
[Date "2019.04.30"]
[Round "5.13"]
[White "Slim, Nadim"]
[Black "Hariri, Nizar"]
[Result "0-1"]
[ECO "C11"]
[WhiteElo "1781"]
[BlackElo "1958"]
[PlyCount "82"]
[EventDate "2019.04.25"]
[EventType "swiss"]
[EventRounds "9"]
[EventCountry "LBN"]
[TimeControl "5400+30"]

1. e4 e6 2. d4 d5 3. Nc3 Nf6 4. e5 Nfd7 5. Nce2 c5 6. c3 Nc6 7. f4 a6 8. Nf3 b5 9. g3 Qb6 10. Bg2 cxd4 11. Nexd4 Nxd4 12. cxd4 Be7 13. O-O a5 14. Be3 Ba6 15. Rc1 b4 16. Rf2 O-O 17. b3 Rac8 18. Rfc2 Nb8 19. Rxc8 Rxc8 20. Rxc8+ Bxc8 21. Qc2 Ba6 22. Bf1 Bxf1 23. Kxf1 Qc6 24. Ne1 Qxc2 25. Nxc2 Nc6 26. Ke2 Na7 27. Bc1 Nb5 28. Bb2 f5 29. exf6 Bxf6 30. g4 h6 31. Ke3 Bh4 32. a3 bxa3 33. Nxa3 Nxa3 34. Bxa3 Be1 35. Bc1 Kf7 36. Bd2 Bxd2+ 37. Kxd2 Kf6 38. h4 h5 39. g5+ Kf5 40. Ke3 Kg4 41. g6 Kg3 0-1

[Event "10th Beirut Open-ch 2019"]
[Site "Beirut"]
[Date "2019.04.30"]
[Round "5.14"]
[White "Khechen, Nabil E"]
[Black "Salman, Samer"]
[Result "0-1"]
[ECO "C68"]
[WhiteElo "1933"]
[BlackElo "1505"]
[PlyCount "96"]
[EventDate "2019.04.25"]
[EventType "swiss"]
[EventRounds "9"]
[EventCountry "LBN"]
[TimeControl "5400+30"]

1. e4 e5 2. Nf3 Nc6 3. Bb5 a6 4. Bxc6 dxc6 5. O-O Bd6 6. d4 exd4 7. Qxd4 f6 8. Be3 Be6 9. Nbd2 Ne7 10. Qc3 O-O 11. Rad1 Qe8 12. e5 fxe5 13. Nxe5 Qh5 14. Nef3 Bd5 15. h3 Nf5 16. Rfe1 Nh4 17. Nxh4 Qxh4 18. Qd4 Qh5 19. c4 Be6 20. Qc3 Qg6 21. Bd4 Rae8 22. Nf1 c5 23. Be3 Bxh3 24. Bg5 Bxg2 25. Rxe8 Rxe8 26. f4 Bxf1 27. Kxf1 Qe4 28. Qd3 Bxf4 29. Bxf4 Qxf4+ 30. Kg1 Qe3+ 31. Qxe3 Rxe3 32. Rd7 b6 33. Rxc7 Re6 34. Kf2 h5 35. Kf3 Kh7 36. Kf4 h4 37. Rd7 h3 38. Kg3 Rh6 39. Kh2 Kg6 40. Rd5 Kf6 41. a4 a5 42. b4 axb4 43. a5 Ke7 44. axb6 Rxb6 45. Rxc5 b3 46. Re5+ Kd6 47. Re1 b2 48. Rb1 Kc5 0-1

[Event "10th Beirut Open-ch 2019"]
[Site "Beirut"]
[Date "2019.04.30"]
[Round "5.15"]
[White "Hanna, Elie"]
[Black "Nassar, Marc"]
[Result "1-0"]
[ECO "A56"]
[WhiteElo "1726"]
[BlackElo "1909"]
[PlyCount "85"]
[EventDate "2019.04.25"]
[EventType "swiss"]
[EventRounds "9"]
[EventCountry "LBN"]
[TimeControl "5400+30"]

1. d4 c5 2. d5 Nf6 3. c4 e5 4. Nc3 d6 5. e4 Be7 6. Bd3 a6 7. Nge2 Nh5 8. g3 Bg4 9. Qc2 Bf3 10. Rg1 Bg5 11. h4 Bxc1 12. Qxc1 Nf6 13. Qe3 Bxe2 14. Bxe2 Nbd7 15. f4 h6 16. f5 Nh7 17. Qf2 b6 18. g4 f6 19. Bd1 Ke7 20. Ba4 Rb8 21. Bc6 b5 22. cxb5 axb5 23. Bxb5 Qa5 24. Qe2 Nb6 25. Rg3 Nc8 26. O-O-O Na7 27. Bc4 Rb7 28. Nb1 Rhb8 29. Ra3 Qc7 30. Rd2 Kf8 31. Nc3 Kg8 32. Nd1 Nf8 33. g5 Qf7 34. gxh6 g6 35. Rg3 Kh7 36. Qe3 Qe8 37. Qg1 Qa4 38. Rc2 Nb5 39. fxg6+ Kg8 40. h7+ Kg7 41. h5 Nd4 42. h6+ Kxh6 43. h8=Q+ 1-0

[Event "10th Beirut Open-ch 2019"]
[Site "Beirut"]
[Date "2019.04.30"]
[Round "5.16"]
[White "Khoder, Akram"]
[Black "Attieh, Wael"]
[Result "1-0"]
[ECO "A25"]
[WhiteElo "1608"]
[BlackElo "1823"]
[PlyCount "83"]
[EventDate "2019.04.25"]
[EventType "swiss"]
[EventRounds "9"]
[EventCountry "LBN"]
[TimeControl "5400+30"]

1. c4 e5 2. g3 Nf6 3. Bg2 Nc6 4. Nc3 d6 5. e3 Be7 6. Nge2 O-O 7. O-O Re8 8. d3 Be6 9. Qb3 Rb8 10. Bd2 Qd7 11. Nd5 Nd8 12. Nec3 c6 13. Nxf6+ Bxf6 14. Qa3 b6 15. Rac1 Be7 16. Qa6 Qb7 17. Qa4 a5 18. d4 exd4 19. exd4 Bd7 20. Rfe1 Qc8 21. d5 c5 22. Nb5 f6 23. b3 Nf7 24. f4 Bh3 25. Bxh3 Qxh3 26. Nc7 Rf8 27. Rxe7 Nh6 28. Qd7 Nf5 29. Rxg7+ Kh8 30. Ne6 Rg8 31. Bc3 Nxg7 32. Bxf6 Qh6 33. Qf7 Qg6 34. Bxg7+ Rxg7 35. Qxg7+ Qxg7 36. Nxg7 Kxg7 37. a4 Re8 38. Kf2 Re4 39. Rd1 Kf6 40. Kf3 Re7 41. Rd3 Re1 42. Re3 1-0